bitfinex-derivatives/quotes_SOLF0:USTF0_20241211
["timestamp","ask_amount","ask_price","bid_price","bid_amount"]
[1733929321535,12.90462538,228.05,227.93,1.3936]
[1733929321737,12.90462538,228.05,227.94,5.27198483]
[1733929321941,10.18462538,227.99,227.95,5.27198483]
[1733929322144,2.1922,227.96,227.95,16.07]
[1733929322444,12.37682538,227.96,227.95,16.07]
[1733929322841,10.18462538,227.96,227.85,1.4317]
[1733929323037,2.834,227.97,227.86,7.47129777]
[1733929323038,10.18462538,227.93,227.86,7.47129777]
[1733929323240,2.72,227.92,227.87,5.27696792]
[1733929323542,2.72,227.92,227.88,5.27696792]
[1733929323743,2.72,227.92,227.86,2.19432985]
[1733929323947,2.193,227.88,227.87,5.36751382]
[1733929324239,2.193,227.88,227.87,9.93]
[1733929324445,2.193,227.88,227.87,5.5664]
[1733929325448,2.72,227.9,227.87,5.5664]
[1733929325651,2.72,227.94,227.87,5.5664]
[1733929325952,2.72,227.98,227.87,5.5664]
[1733929326248,2.72,227.98,227.88,5.36060607]
[1733929326545,2.1926,227.92,227.87,5.5664]
[1733929326745,10.18462538,227.96,227.88,5.36044926]
[1733929327049,109.0040027,234.17,227.89,5.36044926]
[1733929327050,10.18462538,227.99,227.89,5.36044926]
[1733929327254,2.1924,227.94,227.9,5.36044926]
[1733929327546,10.18462538,227.96,227.87,6.9005]
[1733929327740,2.193,227.88,227.87,5.5664]
[1733929330150,10.18462538,227.9,227.86,5.70432985]
[1733929330349,12.37772538,227.87,227.86,5.70432985]
[1733929330555,2.1931,227.87,227.86,3.51]
[1733929330752,2.1928,227.9,227.86,3.51]
[1733929331056,10.18462538,227.93,227.86,3.51]
[1733929331549,2.1931,227.87,227.86,3.51]
[1733929331949,12.37772538,227.87,227.86,3.51]
[1733929332552,2.1939,227.79,227.77,5.35754244]
[1733929332754,10.18462538,227.81,227.72,2.6328]
[1733929332949,10.18462538,227.81,227.73,5.35865153]
[1733929333254,10.18462538,227.81,227.74,5.35865153]
[1733929333449,10.18462538,227.81,227.72,2.6328]
[1733929333652,10.18462538,227.81,227.73,7.34656524]
[1733929333851,10.18462538,227.81,227.73,1.99]
[1733929334053,2.1938,227.8,227.73,1.99]
[1733929334256,10.18462538,227.81,227.73,1.99]
[1733929334654,10.18462538,227.84,227.74,5.14037346]
[1733929334849,2.72,227.86,227.75,15.53571595]
[1733929335055,2.72,227.89,227.76,5.35109057]
[1733929335257,2.1934,227.84,227.76,2.1941]
[1733929335454,10.18462538,227.87,227.74,7.86037346]
[1733929335651,2.1932,227.86,227.77,5.34842462]
[1733929335855,2.72,227.89,227.8,2.1937]
[1733929336165,10.18462538,227.9,227.74,7.86037346]
[1733929336355,10.18462538,227.9,227.75,15.5309779]
[1733929336550,10.18462538,227.87,227.76,5.34635252]
[1733929336750,10.18462538,227.87,227.77,5.34635252]
[1733929337054,10.18462538,227.84,227.74,7.86037346]
[1733929337255,10.18462538,227.84,227.75,5.34306676]
[1733929337453,2.1936,227.82,227.76,5.34306676]
[1733929337657,12.90462538,227.87,227.74,7.86037346]
[1733929337960,12.90462538,227.87,227.75,5.33975247]
[1733929337961,2.1938,227.8,227.75,5.33975247]
[1733929338159,2.1938,227.8,227.74,10.05467346]
[1733929338357,12.90462538,227.87,227.74,7.86037346]
[1733929338560,2.1935,227.83,227.74,7.86037346]
[1733929338758,12.90462538,227.87,227.74,7.86037346]
[1733929338960,10.18462538,227.84,227.75,5.33555378]
[1733929339159,10.18462538,227.84,227.74,5.14037346]
[1733929340470,10.18462538,227.81,227.74,5.14037346]
[1733929340662,12.90462538,227.81,227.73,6.63]
[1733929340860,10.18462538,227.78,227.73,6.63]
[1733929341060,2.1943,227.74,227.73,6.63]
[1733929341261,10.18462538,227.78,227.73,6.63]
[1733929341461,12.90462538,227.81,227.73,6.63]
[1733929341665,12.90462538,227.81,227.74,2.1943]
[1733929341862,10.18462538,227.81,227.73,6.63]
[1733929342569,2.1938,227.8,227.73,8.8244]
[1733929342766,10.18462538,227.81,227.73,6.63]
[1733929343164,10.18462538,227.78,227.73,6.63]
[1733929343370,12.90462538,227.78,227.73,6.63]
[1733929343562,2.194,227.78,227.73,6.63]
[1733929343869,12.90462538,227.84,227.73,6.63]
[1733929344170,10.18462538,227.81,227.73,6.63]
[1733929344867,2.1938,227.8,227.73,6.63]
[1733929345373,2.194,227.78,227.73,6.63]
[1733929345575,10.18462538,227.81,227.73,6.63]
[1733929346177,10.18462538,227.78,227.73,6.63]
[1733929346375,12.90462538,227.78,227.73,6.63]
[1733929347672,10.18462538,227.81,227.73,6.63]
[1733929347874,2.72,227.82,227.73,6.63]
[1733929347875,12.90462538,227.84,227.73,6.63]
[1733929348073,5.35377807,227.9,227.78,2.1939]
[1733929348074,10.18462538,227.87,227.78,2.1939]
[1733929348273,10.18462538,227.87,227.75,2.72]
[1733929348474,10.18462538,227.87,227.75,12.90462538]
[1733929348670,10.18462538,227.87,227.79,2.1938]
[1733929348671,2.1933,227.85,227.79,2.1938]
[1733929348871,10.18462538,227.9,227.78,10.18462538]
[1733929349374,2.72,227.92,227.82,2.1936]
[1733929349879,2.72,227.92,227.79,6.31]
[1733929349880,2.1933,227.85,227.79,8.5038]
[1733929350078,10.18462538,227.87,227.79,6.31]
[1733929350279,10.18462538,227.84,227.79,6.31]
[1733929350475,2.1937,227.8,227.79,6.31]
[1733929351472,4.9137,227.8,227.79,6.31]
[1733929351871,2.1943,227.74,227.7,2.8175]
[1733929353077,10.18462538,227.89,227.73,12.17462538]
[1733929353275,10.18462538,227.89,227.76,10.18462538]
[1733929353476,10.18462538,227.89,227.82,2.1936]
[1733929353672,12.90462538,227.95,227.79,10.18462538]
[1733929353876,289.5657033,228.09,227.86,2.1932]
[1733929353877,182.9442775,228.07,227.86,2.1932]
[1733929354176,289.5657033,228.09,227.82,10.18462538]
[1733929354177,10.18462538,227.96,227.82,10.18462538]
[1733929354375,10.18462538,227.96,227.83,2.8]
[1733929354880,10.18462538,227.96,227.84,5.30984215]
[1733929355075,10.18462538,227.93,227.8,12.87742538]
[1733929355380,2.1927,227.92,227.84,2.1934]
[1733929355782,2.8,227.93,227.8,8.02697077]
[1733929357180,16.26751821,227.96,227.8,8.02697077]
[1733929357479,2.8,227.95,227.8,8.02697077]
[1733929357682,2.1927,227.91,227.82,2.1935]
[1733929357875,2.1927,227.91,227.83,5.31727603]
[1733929358078,2.1927,227.91,227.8,8.02697077]
[1733929358381,2.1926,227.93,227.81,5.31805082]
[1733929358676,16.26751821,227.96,227.82,5.31805082]
[1733929358677,19.06751821,227.96,227.82,5.31805082]
[1733929358882,19.06751821,227.96,227.83,8.11805082]
[1733929358883,2.8,227.96,227.83,8.11805082]
[1733929359179,2.8,227.96,227.84,5.31805082]
[1733929359383,2.8,227.96,227.82,16.26751821]
[1733929359384,2.8,227.96,227.85,10.31125082]
[1733929359581,2.1925,227.93,227.86,5.31805082]
[1733929359881,2.8,227.96,227.85,4.9932]
[1733929360183,2.8,227.96,227.86,5.32155525]
[1733929360377,16.26751821,228.0,227.85,4.9932]
[1733929360378,2.8,227.98,227.87,5.32155525]
[1733929360600,2.8,227.98,227.86,1.3212]
[1733929360983,2.8,227.98,227.87,5.32640098]
[1733929361180,2.8,227.98,227.86,1.3212]
[1733929361383,2.1923,227.95,227.87,7.52382578]
[1733929361584,16.26751821,228.0,227.88,5.33072578]
[1733929361887,2.1924055,228.06,227.89,5.33072578]
[1733929361888,2.8,228.02,227.89,5.33072578]
[1733929362185,2.8,228.02,227.86,17.58871821]
[1733929362186,2.8,228.02,227.9,8.14492578]
[1733929362479,2.8,228.02,227.91,8.13072578]
[1733929362684,2.8,228.02,227.92,5.33072578]
[1733929362883,2.8,228.02,227.93,5.33072578]
[1733929363078,2.8,228.02,227.94,5.33072578]
[1733929363280,2.8,228.02,227.95,5.32738662]
[1733929363586,2.8,228.02,227.9,2.8142]
[1733929363785,2.192,227.99,227.91,5.33514527]
[1733929363984,2.8,228.02,227.92,5.33514527]
[1733929364284,2.8,228.02,227.93,5.33514527]
[1733929364485,16.26751821,228.05,227.94,5.33514527]
[1733929364682,16.26751821,228.05,227.95,5.33925163]
[1733929364985,16.26751821,228.05,227.96,5.33925163]
[1733929365182,2.1915,228.04,227.97,7.53135163]
[1733929365490,16.26751821,228.05,227.98,6.35]
[1733929366184,18.45891821,228.05,227.98,6.35]
[1733929366380,16.26751821,228.09,227.98,6.35]
[1733929366889,16.26751821,228.09,227.99,6.66339867]
[1733929367188,16.26751821,228.09,227.99,1.321]
[1733929367487,16.26751821,228.1,227.99,1.321]
[1733929367688,16.26751821,228.1,228.0,5.33894666]
[1733929367994,16.26751821,228.1,227.99,1.321]
[1733929368480,19.06751821,228.1,227.99,1.321]
[1733929368885,2.1915,228.03,227.99,1.321]
[1733929369084,16.26751821,228.06,227.98,6.35]
[1733929369988,2.1917,228.01,227.98,6.35]
[1733929370390,16.26751821,228.06,227.98,6.35]
[1733929370589,19.06751821,228.1,227.98,6.35]
[1733929372589,2.8,228.09,227.98,6.35]
[1733929372990,2.1919,227.99,227.98,6.35]
[1733929375193,16.26751821,228.02,227.88,1.99]
[1733929375388,19.06751821,228.03,227.88,1.99]
[1733929375389,16.26751821,227.98,227.88,1.99]
[1733929375592,2.8,227.97,227.88,1.99]
[1733929376091,2.1927,227.91,227.88,1.99]
[1733929376493,2.1928,227.9,227.88,1.99]
[1733929377791,10.16655278,227.98,227.88,1.99]
[1733929378002,10.16655278,228.01,227.88,1.99]
[1733929378202,10.16655278,228.04,227.9,10.16655278]
[1733929378402,10.16655278,228.04,227.91,8.12986279]
[1733929378593,10.16655278,228.04,227.92,5.32986279]
[1733929378793,10.16655278,228.04,227.92,2.1926]
[1733929379290,2.1919,228.0,227.92,2.1926]
[1733929379494,2.1919,228.0,227.93,2.1924]
[1733929379991,2.8,228.03,227.91,2.8]
[1733929379992,2.192,227.99,227.91,2.8]
[1733929380197,2.192,227.99,227.92,2.1926]
[1733929380601,2.1921,227.97,227.91,2.8]
[1733929380800,2.8,228.03,227.94,2.1924]
[1733929380992,2.8,228.06,227.95,1.3953]
[1733929381188,2.1916,228.03,227.95,7.8353]
[1733929381399,2.1916,228.03,227.98,2.192]
[1733929381697,2.1916,228.03,227.95,7.8353]
[1733929381894,2.8,228.06,227.95,7.8353]
[1733929382092,10.16655278,228.07,227.96,2.1921]
[1733929382291,10.16655278,228.07,227.95,7.8353]
[1733929382900,2.1916,228.03,227.98,2.1921]
[1733929383097,10.16655278,228.07,227.95,7.8353]
[1733929383400,2.1916,228.03,227.98,2.1921]
[1733929384210,10.16655278,228.07,227.95,7.8353]
[1733929384500,10.16655278,228.1,227.97,2.78]
[1733929384699,10.16655278,228.1,227.95,7.8353]
[1733929384700,10.16655278,228.04,227.98,5.32818953]
[1733929384899,10.16655278,228.04,227.95,7.8353]
[1733929385092,2.1918,228.02,227.95,7.8353]
[1733929385296,10.16655278,228.04,227.95,7.8353]
[1733929385493,10.16655278,228.07,227.95,13.18180494]
[1733929385792,10.16655278,228.07,227.95,15.96180494]
[1733929386001,10.16655278,228.1,227.95,26.12835772]
[1733929386201,10.16655278,228.1,227.96,5.32979013]
[1733929386399,2.191,228.08,227.99,2.1918]
[1733929386599,10.16655278,228.1,227.95,26.12835772]
[1733929386798,10.16655278,228.1,227.98,10.16655278]
[1733929387299,10.16655278,228.1,227.99,5.33103519]
[1733929387498,10.16655278,228.1,227.98,10.16655278]
[1733929387698,2.1911,228.07,228.01,2.1916]
[1733929387895,10.16655278,228.1,227.98,10.16655278]
[1733929388119,2.1909,228.1,228.05,2.1913]
[1733929389000,10.16655278,228.13,228.02,4.1362]
[1733929389205,10.16655278,228.1,228.02,4.1362]
[1733929389410,2.1916,228.02,227.97,2.78]
[1733929389601,10.16655278,228.07,227.98,5.3322487]
[1733929389808,12.94655278,228.07,227.95,24.74185772]
[1733929390002,2.1916,228.03,227.96,5.33325906]
[1733929390209,2.1916,228.03,227.97,5.33325906]
[1733929390398,2.1916,228.03,227.98,5.33325906]
[1733929390606,2.1916,228.03,227.95,24.74185772]
[1733929390806,2.1916,228.03,227.96,5.3347749]
[1733929391004,2.1916,228.03,227.98,2.1919]
[1733929391205,10.16655278,228.07,227.99,5.3347749]
[1733929391406,10.16655278,228.1,228.0,5.3347749]
[1733929391603,10.16655278,228.1,228.0,2.1918]
[1733929391906,10.16655278,228.1,228.01,5.33849642]
[1733929391907,2.1913,228.05,228.01,5.33849642]
[1733929392106,10.16655278,228.1,227.98,2.78]
[1733929392298,10.16655278,228.1,228.01,1.98]
[1733929392299,2.1915,228.03,228.01,1.98]
[1733929392605,10.16655278,228.1,228.01,1.98]
[1733929392907,10.16655278,228.07,228.01,1.98]
[1733929393106,2.1916,228.02,228.01,1.98]
[1733929393607,10.16655278,228.04,227.95,6.44]
[1733929393807,2.1922,227.96,227.95,6.44]
[1733929394707,4.9719,228.0,227.95,9.75]
[1733929394905,2.78,228.0,227.95,9.75]
[1733929395404,2.1922,227.96,227.95,9.75]
[1733929397404,2.1922,227.96,227.95,15.11141819]
[1733929397611,10.16655278,228.02,227.95,9.75]
[1733929398109,2.1918,228.0,227.95,9.75]
[1733929398311,2.78,228.08,227.96,5.36259972]
[1733929398514,10.16655278,228.06,227.97,8.14129972]
[1733929398811,10.16655278,228.06,227.98,5.36259972]
[1733929399011,10.16655278,228.06,227.97,2.7787]
[1733929399211,2.1915,228.04,227.98,5.36365005]
[1733929399416,2.1915,228.04,227.97,2.7787]
[1733929399417,10.16655278,228.06,227.97,2.7787]
[1733929399607,10.16655278,228.06,227.98,12.17428082]
[1733929399808,10.16655278,228.06,227.99,5.36343681]
[1733929400010,10.16655278,228.06,228.0,5.36343681]
[1733929400218,2.1919,228.0,227.98,6.81]
[1733929400605,2.1919,228.0,227.99,5.36388032]
[1733929400804,2.1919,228.0,227.98,6.81]
[1733929401205,2.1919,228.0,227.99,5.36263158]
[1733929401507,10.16655278,228.05,227.99,5.36263158]
[1733929401712,10.16655278,228.05,227.98,6.81]
[1733929402114,10.16655278,228.05,227.99,5.36195078]
[1733929402316,10.16655278,228.05,228.0,5.36195078]
[1733929402511,10.16655278,228.05,227.98,6.81]
[1733929402712,10.16655278,228.05,227.99,5.36304099]
[1733929403014,10.16655278,228.05,228.0,5.36304099]
[1733929403210,10.16655278,228.05,227.98,6.81]
[1733929403511,5.3581491,228.11,227.99,5.36332103]
[1733929403715,10.16655278,228.05,227.98,6.81]
[1733929403915,10.16655278,228.05,227.99,5.36426039]
[1733929404119,10.16655278,228.08,227.98,6.81]
[1733929404420,2.1914,228.04,227.98,6.81]
[1733929404608,10.16655278,228.08,227.99,5.36474548]
[1733929405009,10.16655278,228.08,228.0,5.36474548]
[1733929405218,10.16655278,228.08,228.01,5.36474548]
[1733929405429,10.16655278,228.08,227.98,6.81]
[1733929405713,2.1916,228.04,227.99,5.36612126]
[1733929405915,2.78,228.03,228.0,5.36612126]
[1733929406127,2.78,228.03,227.98,6.81]
[1733929406313,2.192,227.99,227.98,6.81]
[1733929406515,10.16655278,227.99,227.95,3.31]
[1733929406710,10.16655278,227.98,227.95,3.31]
[1733929406911,2.1923,227.96,227.95,3.31]
[1733929408819,2.1923,227.96,227.94,4.51]
[1733929408820,12.35895278,227.95,227.94,4.51]
[1733929409315,10.16655278,227.95,227.81,5.34938251]
[1733929409516,10.16655278,227.92,227.82,5.34938251]
[1733929409712,3.0,227.91,227.83,5.34938251]
[1733929409916,3.0,227.91,227.76,10.16655278]
[1733929410126,2.1933,227.85,227.78,2.194]
[1733929410422,3.0,227.91,227.79,5.34993854]
[1733929410622,3.0,227.91,227.8,5.34993854]
[1733929410825,5.2408588,227.99,227.82,10.16655278]
[1733929411016,13.16655278,227.98,227.85,10.16655278]
[1733929411323,10.16655278,227.98,227.86,2.7174]
[1733929411622,3.0,228.0,227.88,10.16655278]
[1733929411818,10.16655278,228.01,227.89,5.34555621]
[1733929411819,13.16655278,228.01,227.89,5.34555621]
[1733929412025,2.1923,227.96,227.9,5.34555621]
[1733929412219,2.1923,227.96,227.88,2.193]
[1733929412426,2.1923,227.96,227.89,5.3409278]
[1733929412620,2.1923,227.96,227.9,5.3409278]
[1733929412819,2.1923,227.96,227.88,2.193]
[1733929413019,2.1923,227.96,227.89,5.34073277]
[1733929413224,2.1924,227.95,227.88,2.193]
[1733929413416,2.1924,227.95,227.89,5.34121846]
[1733929413626,2.1918,228.01,227.9,3.0]
[1733929413827,29.84864182,228.14,227.91,21.60188345]
[1733929413828,16.26062057,228.08,227.91,21.60188345]
[1733929414023,16.26062057,228.08,227.91,5.34126288]
[1733929414325,16.26062057,228.08,227.92,8.34126288]
[1733929414525,16.26062057,228.04,227.93,5.34126288]
[1733929414719,2.1921,227.98,227.94,5.34126288]
[1733929415025,3.0,228.05,227.95,5.3400557]
[1733929415221,2.1918,228.01,227.96,8.0588557]
[1733929415430,2.1918,228.01,227.96,2.7188]
[1733929415623,3.0,228.05,227.96,2.7188]
[1733929415925,2.1921,227.98,227.96,2.7188]
[1733929416527,16.26062057,228.03,227.91,5.24888859]
[1733929416826,16.26062057,228.03,227.92,5.3411083]
[1733929417027,16.26062057,228.03,227.93,5.3411083]
[1733929417225,16.26062057,228.03,227.94,5.3411083]
[1733929417424,16.26062057,228.03,227.91,5.24888859]
[1733929417425,2.192,227.99,227.91,5.24888859]
[1733929417620,16.26062057,228.03,227.92,5.34203549]
[1733929417826,3.0,228.05,227.93,5.34203549]
[1733929418029,3.0,228.05,227.94,5.34203549]
[1733929418030,2.192,227.98,227.94,5.34203549]
[1733929418230,2.192,227.98,227.95,5.34203549]
[1733929418531,2.192,227.98,227.91,7.44158859]
[1733929418730,2.1918,228.0,227.93,2.1925]
[1733929418928,16.26062057,228.03,227.94,5.34488807]
[1733929419131,16.26062057,228.03,227.91,5.24888859]
[1733929419330,2.1922,227.96,227.92,5.34643822]
[1733929419522,16.26062057,228.03,227.93,5.34643822]
[1733929419724,16.26062057,227.99,227.88,2.8231]
[1733929419924,19.26062057,227.99,227.89,5.3467947]
[1733929420128,19.26062057,227.99,227.9,5.3467947]
[1733929420332,2.1927,227.92,227.88,2.8231]
[1733929420624,19.26062057,227.99,227.89,5.34751187]
[1733929420825,2.1927,227.92,227.89,5.34855441]
[1733929421026,19.26062057,227.99,227.88,2.8231]
[1733929421228,16.26062057,227.95,227.79,5.19557458]
[1733929421432,16.26062057,227.91,227.8,8.09792634]
[1733929421738,19.26062057,227.91,227.81,5.35102634]
[1733929421931,2.193,227.89,227.82,5.35102634]
[1733929422229,3.0,227.91,227.83,5.35102634]
[1733929422420,3.0,227.91,227.8,2.7469]
[1733929422731,3.0,227.91,227.81,5.35082295]
[1733929423029,3.0,227.91,227.82,5.35082295]
[1733929423231,3.0,227.91,227.83,5.3484299]
[1733929423232,2.1934,227.84,227.83,5.3484299]
[1733929423431,2.1934,227.84,227.83,5.3475041]
[1733929423633,16.26062057,227.9,227.8,2.7469]
[1733929423932,16.26062057,227.9,227.81,5.34758346]
[1733929424230,3.0,227.91,227.82,5.34758346]
[1733929424429,3.0,227.91,227.83,5.34758346]
[1733929424629,3.0,227.91,227.81,1.332]
[1733929424831,2.1932,227.87,227.82,5.34430311]
[1733929425028,2.1932,227.87,227.81,1.332]
[1733929425029,2.1932,227.87,227.83,5.34430311]
[1733929425229,3.0,227.91,227.81,1.332]
[1733929425430,3.0,227.91,227.82,5.34844858]
[1733929425628,3.0,227.91,227.81,1.332]
[1733929426226,3.0,227.91,227.82,5.34203178]
[1733929426434,3.0,227.91,227.81,1.332]
[1733929426631,2.1931,227.87,227.81,1.332]
[1733929426827,3.0,227.91,227.82,5.33919879]
[1733929427025,3.0,227.91,227.81,1.332]
[1733929427435,19.26062057,227.92,227.82,5.33707555]
[1733929427732,19.26062057,227.92,227.81,1.332]
[1733929427927,19.26062057,227.92,227.82,5.33670612]
[1733929428128,19.26062057,227.92,227.83,5.33670612]
[1733929428339,16.26062057,228.03,227.84,5.33546065]
[1733929428340,16.26062057,227.96,227.84,5.33546065]
[1733929428533,3.0,227.97,227.85,5.33546065]
[1733929428730,16.26062057,228.0,227.83,19.26062057]
[1733929429035,2.1923,227.95,227.84,5.33329183]
[1733929429253,16.26062057,228.0,227.85,5.33329183]
[1733929429536,16.26062057,228.0,227.86,7.52649183]
[1733929429735,16.26062057,228.0,227.87,5.33329183]
[1733929430029,2.1926,227.92,227.88,5.33308318]
[1733929430236,2.1926,227.92,227.89,5.33308318]
[1733929430529,16.26062057,228.0,227.83,19.26062057]
[1733929430731,3.0,228.02,227.9,5.33349866]
[1733929430931,16.26062057,228.04,227.91,8.05569866]
[1733929431130,2.192,227.98,227.92,5.33349866]
[1733929431331,2.192,227.98,227.91,2.7222]
[1733929431631,2.1923,227.96,227.92,5.33423242]
[1733929431828,16.26062057,228.04,227.91,2.7222]
[1733929432129,2.1919,228.0,227.93,2.1925]
[1733929432526,3.0,228.05,227.92,1.3928]
[1733929432729,2.1915,228.04,227.97,2.1921]
[1733929432932,3.0,228.1,227.97,2.1921]
[1733929433132,19.26062057,228.1,227.97,2.1921]
[1733929433732,19.26062057,228.1,227.96,3.0]
[1733929433933,19.26062057,228.1,227.97,5.33545929]
[1733929434232,19.26062057,228.1,227.98,5.33545929]
[1733929434433,19.26062057,228.1,227.92,1.3928]
[1733929434733,19.26062057,228.1,227.93,5.33786629]
[1733929434935,19.26062057,228.1,227.94,5.33786629]
[1733929435135,19.26062057,228.1,227.95,5.33786629]
[1733929435335,19.26062057,228.1,227.96,5.33786629]
[1733929435537,19.26062057,228.1,227.97,5.33786629]
[1733929435737,2.1915,228.03,227.95,2.1923]
[1733929436030,19.26062057,228.1,227.92,1.3928]
[1733929436031,19.26062057,228.1,227.96,5.33952204]
[1733929436235,2.1912,228.07,227.97,5.33952204]
[1733929436539,19.26062057,228.1,227.97,3.06]
[1733929436540,16.26062057,228.1,227.97,3.06]
[1733929436730,16.26062057,228.36,228.0,2.1917]
[1733929436731,2.1911,228.08,228.0,2.1917]
[1733929437048,19.32062057,228.14,228.01,2.6945]
[1733929437233,2.1915,228.04,227.95,2.1923]
[1733929437435,13.21524809,228.08,227.96,5.3365831]
[1733929437629,13.21524809,228.08,227.97,5.3365831]
[1733929437831,10.15524809,228.05,227.98,5.3365831]
[1733929438031,10.15524809,228.05,227.95,2.6945]
[1733929438235,10.15524809,228.05,227.96,5.3378055]
[1733929438439,2.1919,228.0,227.95,2.6945]
[1733929438635,2.1919,228.0,227.96,5.33913592]
[1733929438832,10.15524809,228.02,227.92,1.3928]
[1733929439032,10.15524809,228.02,227.93,5.34042676]
[1733929439239,13.21524809,228.02,227.92,1.3928]
[1733929439739,2.1919,228.0,227.93,5.34125507]
[1733929439936,2.1919,228.0,227.94,5.3404731]
[1733929440136,2.1919,228.0,227.92,1.3928]
[1733929440339,15.40694809,228.02,227.93,5.34007389]
[1733929440537,13.21524809,228.02,227.94,5.34007389]
[1733929440738,13.21524809,228.02,227.92,1.3928]
[1733929440739,3.06,228.02,227.92,1.3928]
[1733929440941,3.06,228.02,227.93,5.33947461]
[1733929441239,10.15524809,228.05,227.96,2.1922]
[1733929441430,10.15524809,228.05,227.93,3.06]
[1733929441637,2.1917,228.02,227.95,1.4405]
[1733929441831,10.15524809,228.05,227.95,1.4405]
[1733929442037,3.06,228.07,227.95,1.4405]
[1733929442038,3.06,228.07,227.96,6.77392334]
[1733929442341,3.06,228.07,227.97,5.33822334]
[1733929442540,2.1914,228.05,227.98,7.53022334]
[1733929442742,10.15524809,228.08,227.99,5.33822334]
[1733929442940,10.15524809,228.08,227.96,1.4357]
[1733929442941,10.15524809,228.08,228.0,5.33822334]
[1733929443134,10.15524809,228.08,227.96,1.4357]
[1733929443335,10.15524809,228.08,227.99,2.1919]
[1733929443536,10.15524809,228.08,228.0,5.33397247]
[1733929443740,10.15524809,228.08,227.96,1.4357]
[1733929443943,10.15524809,228.08,227.97,5.33766084]
[1733929444237,10.15524809,228.08,227.98,5.33766084]
[1733929444438,10.15524809,228.08,227.99,5.33766084]
[1733929444638,2.1918,228.01,227.96,1.4357]
[1733929444838,10.15524809,228.08,227.96,1.4357]
[1733929445040,10.15524809,228.08,227.97,5.33954716]
[1733929445242,10.15524809,228.08,227.96,1.4357]
[1733929445841,10.15524809,228.08,227.97,5.34166635]
[1733929446039,10.15524809,228.08,227.98,5.34062928]
[1733929446242,2.1916,228.03,227.96,1.4357]
[1733929446445,10.15524809,228.08,227.97,5.34066118]
[1733929446642,2.1915,228.04,227.98,5.34066118]
[1733929446943,10.15524809,228.08,227.96,1.4357]
[1733929447137,10.15524809,228.08,227.97,5.34032105]
[1733929447342,10.15524809,228.08,227.98,5.34032105]
[1733929447546,10.15524809,228.08,227.99,5.34032105]
[1733929447751,10.15524809,228.08,227.93,3.06]
[1733929448050,10.15524809,228.08,227.94,12.95124809]
[1733929448267,10.15524809,228.08,227.94,19.64213521]
[1733929448437,10.15524809,228.08,228.0,2.1918]
[1733929448438,2.1913,228.06,228.0,2.1918]
[1733929448845,2.1913,228.06,228.01,5.33710038]
[1733929449044,10.15524809,228.08,228.02,2.1916]
[1733929449045,2.1911,228.08,228.02,2.1916]
[1733929449239,10.15524809,228.11,227.97,10.15524809]
[1733929449446,10.15524809,228.11,227.98,5.33643462]
[1733929449750,2.1913,228.06,227.99,5.33643462]
[1733929450050,10.15524809,228.11,228.0,5.33643462]
[1733929450358,10.15524809,228.11,227.97,10.15524809]
[1733929450552,10.15524809,228.11,227.98,5.33598387]
[1733929450848,10.15524809,228.11,227.99,5.33598387]
[1733929451049,2.1913,228.06,228.0,5.33598387]
[1733929451246,10.15524809,228.11,227.99,2.1919]
[1733929451447,10.15524809,228.08,227.94,14.30264809]
[1733929451751,10.15524809,228.08,227.96,2.1922]
[1733929452050,10.15524809,228.08,227.97,5.3370948]
[1733929452246,10.15524809,228.08,227.98,7.5291948]
[1733929452547,10.15524809,228.08,227.98,2.1921]
[1733929452755,10.15524809,228.08,227.99,5.33597836]
[1733929452947,10.15524809,228.08,227.98,2.1921]
[1733929453247,10.15524809,228.08,227.99,2.1919]
[1733929453454,10.15524809,228.08,228.0,5.33394337]
[1733929453649,2.1914,228.06,227.97,10.15524809]
[1733929453853,10.15524809,228.11,227.98,5.33471355]
[1733929454050,10.15524809,228.11,227.97,10.15524809]
[1733929454250,10.15524809,228.11,227.98,5.33511041]
[1733929454453,10.15524809,228.11,227.99,2.1919]
[1733929454752,10.15524809,228.11,227.94,14.30264809]
[1733929454953,2.1914,228.05,227.98,2.192]